fUSD/lending_fUSD_20240620
["ID","MTS","AMOUNT","RATE_DAILY","PERIOD"]
[329961404,1718871033779,-500.0,0.00013698,2]
[329961405,1718871033789,-500.0,0.00013698,2]
[329961406,1718871033801,-615.05,0.00013698,2]
[329961407,1718871033811,-617.0,0.00013698,2]
[329961408,1718871033821,-764.96,0.00013698,2]
[329961409,1718871033832,-1139.92,0.00013698,2]
[329961410,1718871033842,-1098.13,0.00013698,2]
[329961411,1718871033855,-443.13422174,0.00013698,2]
[329961412,1718871033866,-547.56,0.00013698,2]
[329961413,1718871033878,-500.0,0.00013698,2]
[329961414,1718871033888,-893.8,0.00013698,2]
[329961415,1718871033899,-767.4,0.00013698,2]
[329961416,1718871033911,-500.0,0.00013698,2]
[329961417,1718871033921,-500.0,0.00013698,2]
[329961418,1718871033932,-500.0,0.00013698,2]
[329961419,1718871033942,-500.0,0.00013698,2]
[329961420,1718871033957,-500.0,0.00013698,2]
[329961421,1718871033968,-500.0,0.00013698,2]
[329961422,1718871033979,-548.82085256,0.00013698,2]
[329961423,1718871033989,-500.0,0.00013698,2]
[329961424,1718871033999,-500.0,0.00013698,2]
[329961425,1718871034010,-500.0,0.00013698,2]
[329961426,1718871034021,-500.0,0.00013698,2]
[329961427,1718871034031,-500.0,0.00013698,2]
[329961428,1718871034042,-500.0,0.00013698,2]
[329961429,1718871034052,-500.0,0.00013698,2]
[329961430,1718871034064,-500.0,0.00013698,2]
[329961431,1718871034074,-500.0,0.00013698,2]
[329961432,1718871034085,-500.0,0.00013698,2]
[329961433,1718871034095,-655.36,0.00013698,2]
[329961434,1718871034106,-500.0,0.00013698,2]
[329961435,1718871034116,-500.0,0.00013698,2]
[329961436,1718871034127,-500.0,0.00013698,2]
[329961437,1718871034138,-695.9,0.00013698,2]
[329961438,1718871034148,-557.77,0.00013698,2]
[329961439,1718871034159,-500.0,0.00013698,2]
[329961440,1718871034169,-500.0,0.00013698,2]
[329961441,1718871034180,-500.0,0.00013698,2]
[329961442,1718871034191,-944.81,0.00013698,2]
[329961443,1718871034201,-500.0,0.00013698,2]
[329961444,1718871034211,-500.0,0.00013698,2]
[329961445,1718871034222,-500.0,0.00013698,2]
[329961446,1718871034232,-500.0,0.00013698,2]
[329961447,1718871034242,-500.0,0.00013698,2]
[329961448,1718871034253,-500.0,0.00013698,2]
[329961449,1718871034265,-500.0,0.00013698,2]
[329961450,1718871034276,-500.0,0.00013698,2]
[329961451,1718871034286,-500.0,0.00013698,2]
[329961452,1718871034297,-621.16,0.00013698,2]
[329961453,1718871034307,-583.85,0.00013698,2]
[329961454,1718871034317,-674.32,0.00013698,2]
[329961455,1718871034328,-500.0,0.00013698,2]
[329961456,1718871034340,-500.0,0.00013698,2]
[329961457,1718871034351,-500.0,0.00013698,2]
[329961458,1718871034362,-500.0,0.00013698,2]
[329961459,1718871034372,-500.0,0.00013698,2]
[329961460,1718871034383,-500.0,0.00013698,2]
[329961461,1718871034394,-543.33,0.00013698,2]
[329961462,1718871034405,-500.0,0.00013698,2]
[329961463,1718871034415,-500.0,0.00013698,2]
[329961464,1718871034426,-500.0,0.00013698,2]
[329961465,1718871034437,-500.0,0.00013698,2]
[329961466,1718871034449,-500.0,0.00013698,2]
[329961467,1718871034459,-500.0,0.00013698,2]
[329961468,1718871034470,-567.02,0.00013698,2]
[329961469,1718871034481,-500.0,0.00013698,2]
[329961470,1718871034492,-500.0,0.00013698,2]
[329961471,1718871034506,-500.0,0.00013698,2]
[329961472,1718871034516,-702.27,0.00013698,2]
[329961473,1718871034526,-500.0,0.00013698,2]
[329961474,1718871034536,-599.08,0.00013698,2]
[329961475,1718871034547,-500.0,0.00013698,2]
[329961476,1718871034559,-500.0,0.00013698,2]
[329961477,1718871034570,-500.0,0.00013698,2]
[329961478,1718871034582,-500.0,0.00013698,2]
[329961479,1718871034592,-500.0,0.00013698,2]
[329961480,1718871034604,-500.0,0.00013698,2]
[329961481,1718871034615,-744.51,0.00013698,2]
[329961482,1718871034626,-500.0,0.00013698,2]
[329961483,1718871034637,-500.0,0.00013698,2]
[329961484,1718871034647,-864.83,0.00013698,2]
[329961485,1718871034657,-500.0,0.00013698,2]
[329961486,1718871034668,-500.0,0.00013698,2]
[329961487,1718871034678,-500.0,0.00013698,2]
[329961488,1718871034688,-500.0,0.00013698,2]
[329961489,1718871034699,-500.0,0.00013698,2]
[329961490,1718871034709,-500.0,0.00013698,2]
[329961491,1718871034720,-500.0,0.00013698,2]
[329961492,1718871034731,-500.0,0.00013698,2]
[329961493,1718871034741,-870.84,0.00013698,2]
[329961494,1718871034751,-500.0,0.00013698,2]
[329961495,1718871034761,-500.0,0.00013698,2]
[329961496,1718871034772,-500.0,0.00013698,2]
[329961497,1718871034782,-690.59,0.00013698,2]
[329961498,1718871034792,-500.0,0.00013698,2]
[329961499,1718871034803,-500.0,0.00013698,2]
[329961500,1718871034814,-787.98,0.00013698,2]
[329961501,1718871034824,-500.0,0.00013698,2]
[329961502,1718871034835,-500.0,0.00013698,2]
[329961503,1718871034845,-500.0,0.00013698,2]
[329961504,1718871034856,-500.0,0.00013698,2]
[329961505,1718871034871,-578.03,0.00013698,2]
[329961506,1718871034882,-500.0,0.00013698,2]
[329961507,1718871034892,-500.0,0.00013698,2]
[329961508,1718871034902,-500.0,0.00013698,2]
[329961509,1718871034915,-238.01,0.00013698,2]
[329961510,1718871034926,-571.73,0.00013698,2]
[329961511,1718871034938,-500.0,0.00013698,2]
[329961512,1718871034953,-735.65,0.00013698,2]
[329961513,1718871034964,-740.15,0.00013698,2]
[329961514,1718871034975,-628.67,0.00013698,2]
[329961515,1718871034986,-596.7,0.00013698,2]
[329961516,1718871034998,-500.0,0.00013698,2]
[329961517,1718871035008,-500.0,0.00013698,2]
[329961518,1718871035021,-516.82,0.00013698,2]
[329961519,1718871035031,-928.26,0.00013698,2]
[329961520,1718871035041,-500.0,0.00013698,2]
[329961521,1718871035053,-500.0,0.00013698,2]
[329961522,1718871035065,-500.0,0.00013698,2]
[329961523,1718871035075,-500.0,0.00013698,2]
[329961524,1718871035086,-500.0,0.00013698,2]
[329961525,1718871035097,-504.34,0.00013698,2]
[329961526,1718871035107,-500.0,0.00013698,2]
[329961527,1718871035118,-500.0,0.00013698,2]
[329961528,1718871035128,-500.0,0.00013698,2]
[329961529,1718871035775,-567.33,0.00013698,2]
[329961530,1718871035798,-500.0,0.00013698,2]
[329961531,1718871035810,-532.53,0.00013698,2]
[329961532,1718871035821,-500.0,0.00013698,2]
[329961533,1718871035832,-500.0,0.00013698,2]
[329961534,1718871035844,-648.15049297,0.00013698,2]
[329961535,1718871035856,-500.0,0.00013698,2]
[329961536,1718871035868,-500.0,0.00013698,2]
[329961537,1718871035878,-500.0,0.00013698,2]
[329961538,1718871035887,-596.13,0.00013698,2]
[329961539,1718871035896,-500.0,0.00013698,2]
[329961540,1718871035907,-500.0,0.00013698,2]
[329961541,1718871035917,-710.84,0.00013698,2]
[329961542,1718871035926,-500.0,0.00013698,2]
[329961543,1718871035936,-500.0,0.00013698,2]
[329961544,1718871035947,-837.61,0.00013698,2]
[329961545,1718871035958,-500.0,0.00013698,2]
[329961546,1718871035968,-500.0,0.00013698,2]
[329961547,1718871035979,-518.94,0.00013698,2]
[329961548,1718871035989,-500.0,0.00013698,2]
[329961549,1718871035999,-500.0,0.00013698,2]
[329961550,1718871036008,-500.0,0.00013698,2]
[329961551,1718871036018,-239.44961433,0.00013698,2]
[329961552,1718871036028,-702.86,0.00013698,2]
[329961553,1718871036039,-500.0,0.00013698,2]
[329961554,1718871036049,-500.0,0.00013698,2]
[329961555,1718871036058,-747.41,0.00013698,2]
[329961556,1718871036068,-500.0,0.00013698,2]
[329961557,1718871036077,-500.0,0.00013698,2]
[329961558,1718871036087,-801.72,0.00013698,2]
[329961559,1718871036098,-500.0,0.00013698,2]
[329961560,1718871036108,-500.0,0.00013698,2]
[329961561,1718871036117,-505.77,0.00013698,2]
[329961562,1718871036127,-500.0,0.00013698,2]
[329961563,1718871036136,-500.0,0.00013698,2]
[329961564,1718871036146,-500.0,0.00013698,2]
[329961565,1718871036156,-500.0,0.00013698,2]
[329961566,1718871036166,-500.0,0.00013698,2]
[329961567,1718871036175,-512.73,0.00013698,2]
[329961568,1718871036185,-500.0,0.00013698,2]
[329961569,1718871036196,-1303.32,0.00013698,2]
[329961570,1718871036206,-2451.44,0.00013698,2]
[329961571,1718871036216,-508.19,0.00013698,2]
[329961572,1718871036226,-500.0,0.00013698,2]
[329961573,1718871036236,-882.51,0.00013698,2]
[329961574,1718871036246,-500.0,0.00013698,2]
[329961575,1718871036255,-500.0,0.00013698,2]
[329961576,1718871036264,-826.95,0.00013698,2]
[329961577,1718871036274,-500.0,0.00013698,2]
[329961578,1718871036283,-500.0,0.00013698,2]
[329961579,1718871036293,-649.47,0.00013698,2]
[329961580,1718871036304,-1002.7,0.00013698,2]
[329961581,1718871036315,-500.0,0.00013698,2]
[329961582,1718871036324,-500.0,0.00013698,2]
[329961583,1718871036335,-500.0,0.00013698,2]
[329961584,1718871036344,-2607.57,0.00013698,2]
[329961585,1718871036355,-1415.62,0.00013698,2]
[329961586,1718871036364,-500.0,0.00013698,2]
[329961587,1718871036374,-500.0,0.00013698,2]
[329961588,1718871036383,-566.47,0.00013698,2]
[329961589,1718871036394,-4725.12,0.00013698,2]
[329961590,1718871036403,-1824.98,0.00013698,2]
[329961591,1718871036413,-200.37,0.00013698,2]
[329961592,1718871036423,-500.0,0.00013698,2]
[329961593,1718871036434,-1118.8,0.00013698,2]
[329961594,1718871036443,-576.84,0.00013698,2]
[329961595,1718871036452,-500.0,0.00013698,2]
[329961596,1718871036462,-500.0,0.00013698,2]
[329961597,1718871036472,-500.0,0.00013698,2]
[329961598,1718871036481,-500.0,0.00013698,2]
[329961599,1718871036490,-3421.6,0.00013698,2]
[329961600,1718871036500,-1479.42,0.00013698,2]
[329961601,1718871036509,-588.91,0.00013698,2]
[329961602,1718871036519,-609.2,0.00013698,2]
[329961603,1718871036528,-500.0,0.00013698,2]
[329961604,1718871036538,-5275.59,0.00013698,2]
[329961605,1718871036548,-523.27,0.00013698,2]
[329961606,1718871036558,-544.58,0.00013698,2]
[329961607,1718871036569,-500.0,0.00013698,2]
[329961608,1718871036578,-1411.54,0.00013698,2]
[329961609,1718871036588,-500.0,0.00013698,2]
[329961610,1718871036598,-10370.8,0.00013698,2]
[329961611,1718871036609,-1410.67,0.00013698,2]
[329961612,1718871036620,-989.66,0.00013698,2]
[329961613,1718871036630,-500.0,0.00013698,2]
[329961614,1718871036641,-500.0,0.00013698,2]
[329961615,1718871036651,-9432.77,0.00013698,2]
[329961616,1718871036661,-8881.13,0.00013698,2]
[329961617,1718871036671,-500.0,0.00013698,2]
[329961618,1718871036681,-1572.98,0.00013698,2]
[329961619,1718871036691,-500.0,0.00013698,2]
[329961620,1718871036701,-500.0,0.00013698,2]
[329961621,1718871036710,-500.0,0.00013698,2]
[329961622,1718871036720,-626.57,0.00013698,2]
[329961623,1718871036730,-3773.87,0.00013698,2]
[329961624,1718871036740,-605.81,0.00013698,2]
[329961625,1718871036750,-500.0,0.00013698,2]
[329961626,1718871036760,-500.0,0.00013698,2]
[329961627,1718871036769,-500.0,0.00013698,2]
[329961628,1718871036779,-1709.97,0.00013698,2]
[329961629,1718871036789,-1368.23,0.00013698,2]
[329961630,1718871036799,-1133.7,0.00013698,2]
[329961631,1718871036808,-500.0,0.00013698,2]
[329961632,1718871036818,-959.49,0.00013698,2]
[329961633,1718871036829,-22519.75,0.00013698,2]
[329961634,1718871036840,-29073.1,0.00013698,2]
[329961635,1718871036850,-500.0,0.00013698,2]
[329961636,1718871036860,-785.45,0.00013698,2]
[329961637,1718871036874,-947.45,0.00013698,2]
[329961638,1718871036884,-1012.92,0.00013698,2]
[329961639,1718871036895,-500.0,0.00013698,2]
[329961640,1718871036907,-615.62,0.00013698,2]
[329961641,1718871036916,-3751.65,0.00013698,2]
[329961642,1718871036927,-1956.95,0.00013698,2]
[329961643,1718871036937,-2057.01,0.00013698,2]
[329961644,1718871036950,-500.0,0.00013698,2]
[329961645,1718871036960,-845.02,0.00013698,2]
[329961646,1718871036970,-1293.97,0.00013698,2]
[329961647,1718871036980,-500.0,0.00013698,2]
[329961648,1718871036990,-2444.82,0.00013698,2]
[329961649,1718871037002,-2685.44,0.00013698,2]
[329961650,1718871037011,-2457.73,0.00013698,2]
[329961651,1718871037022,-930.74,0.00013698,2]
[329961652,1718871037032,-665.39,0.00013698,2]
[329961653,1718871037043,-1040.94,0.00013698,2]
[329961654,1718871037052,-526.86,0.00013698,2]
[329961655,1718871037063,-1221.89,0.00013698,2]
[329961656,1718871037073,-530.77,0.00013698,2]
[329961657,1718871037083,-9466.77,0.00013698,2]
[329961658,1718871037093,-1418.03,0.00013698,2]
[329961659,1718871037102,-13313.74,0.00013698,2]
[329961660,1718871037112,-653.77,0.00013698,2]
[329961661,1718871037124,-1889.25,0.00013698,2]
[329961662,1718871037135,-500.0,0.00013698,2]
[329961663,1718871037147,-1886.0,0.00013698,2]
[329961664,1718871037158,-1084.99,0.00013698,2]
[329961665,1718871037169,-794.19,0.00013698,2]
[329961666,1718871037178,-2146.0,0.00013698,2]
[329961667,1718871037188,-500.0,0.00013698,2]
[329961668,1718871037198,-716.3,0.00013698,2]
[329961669,1718871037208,-500.0,0.00013698,2]
[329961670,1718871037218,-754.31,0.00013698,2]
[329961671,1718871037228,-500.0,0.00013698,2]
[329961672,1718871037238,-3903.93,0.00013698,2]
[329961673,1718871037248,-500.0,0.00013698,2]
[329961674,1718871037259,-659.04,0.00013698,2]
[329961675,1718871037269,-8606.1,0.00013698,2]
[329961676,1718871037279,-500.0,0.00013698,2]
[329961677,1718871037289,-500.0,0.00013698,2]
[329961678,1718871037299,-1027.92,0.00013698,2]
[329961679,1718871037309,-613.27,0.00013698,2]
[329961680,1718871037320,-937.38,0.00013698,2]
[329961681,1718871037330,-1680.75,0.00013698,2]
[329961682,1718871037341,-1231.06,0.00013698,2]
[329961683,1718871037353,-500.0,0.00013698,2]
[329961684,1718871037364,-1365.58,0.00013698,2]
[329961685,1718871037374,-4032.59,0.00013698,2]
[329961686,1718871037384,-1950.11,0.00013698,2]
[329961687,1718871037394,-500.0,0.00013698,2]
[329961688,1718871037404,-547.21,0.00013698,2]
[329961689,1718871037413,-606.91,0.00013698,2]
[329961690,1718871037423,-3711.04,0.00013698,2]
[329961691,1718871037434,-2237.39,0.00013698,2]
[329961692,1718871037443,-1102.77,0.00013698,2]
[329961693,1718871037453,-4598.29,0.00013698,2]
[329961694,1718871037463,-500.0,0.00013698,2]
[329961695,1718871037474,-1474.34,0.00013698,2]
[329961696,1718871037485,-981.26,0.00013698,2]
[329961697,1718871037495,-500.0,0.00013698,2]
[329961698,1718871037505,-510.13,0.00013698,2]
[329961699,1718871037515,-885.29,0.00013698,2]
[329961700,1718871037525,-500.0,0.00013698,2]
[329961701,1718871037535,-15534.0272943,0.00013698,2]
[329961702,1718871037558,-2198.9527057,0.00013698,2]
[329961703,1718871037571,-2109.84,0.00013698,2]
[329961704,1718871037580,-435.82261096,0.00013698,2]
[329961705,1718871037614,-1306.67738904,0.00013698,2]
[329961706,1718871037624,-500.0,0.00013698,2]
[329961707,1718871037635,-1242.27,0.00013698,2]
[329961708,1718871037645,-1398.93817147,0.00013698,2]
[329961709,1718871037658,-947.56950504,0.00013698,2]
[329961710,1718871037670,-2695.17232349,0.00013698,2]
[329961711,1718871037680,-834.76,0.00013698,2]
[329961712,1718871037690,-520.58,0.00013698,2]
[329961713,1718871037700,-1239.01,0.00013698,2]
[329961714,1718871037710,-3588.82,0.00013698,2]
[329961715,1718871037719,-901.67,0.00013698,2]
[329961716,1718871037729,-500.0,0.00013698,2]
[329961717,1718871037739,-1618.82,0.00013698,2]
[329961718,1718871037749,-500.0,0.00013698,2]
[329961719,1718871037760,-2320.93,0.00013698,2]
[329961720,1718871037770,-500.0,0.00013698,2]
[329961721,1718871037781,-508.71285289,0.00013698,2]
[329961722,1718871037794,-664.03948097,0.00013698,2]
[329961723,1718871037898,-2567.41766614,0.00013698,2]
[329961724,1718871037908,-173.34233397,0.00013698,2]
[329961725,1718871037921,-326.65766603,0.00013698,2]
[329961726,1718871037931,-750.57,0.00013698,2]
[329961727,1718871037942,-122.99485636,0.00013698,2]
[329961728,1718871037954,-1195.36514364,0.00013698,2]
[329961729,1718871037964,-500.0,0.00013698,2]
[329961730,1718871037974,-500.0,0.00013698,2]
[329961731,1718871037983,-525.52,0.00013698,2]
[329961732,1718871037994,-500.0,0.00013698,2]
[329961733,1718871038004,-3728.2853991,0.00013698,2]
[329961734,1718871038016,-1466.9746009,0.00013698,2]
[329961735,1718871038027,-6748.97,0.00013698,2]
[329961737,1718871038037,-3739.53,0.00013698,2]
[329961739,1718871038047,-500.0,0.00013698,2]
[329961741,1718871038057,-2203.64,0.00013698,2]
[329961742,1718871038067,-552.54,0.00013698,2]
[329961743,1718871038077,-594.09,0.00013698,2]
[329961744,1718871038087,-500.0,0.00013698,2]
[329961745,1718871038097,-500.0,0.00013698,2]
[329961746,1718871038109,-3106.58,0.00013698,2]
[329961747,1718871038119,-500.0,0.00013698,2]
[329961749,1718871038128,-680.04,0.00013698,2]
[329961750,1718871038139,-3496.59,0.00013698,2]
[329961751,1718871038148,-2133.42,0.00013698,2]
[329961753,1718871038159,-3223.89,0.00013698,2]
[329961754,1718871038230,-2740.71,0.00013698,2]
[329961755,1718871038240,-500.0,0.00013698,2]
[329961756,1718871038249,-500.0,0.00013698,2]
[329961757,1718871038259,-753.0,0.00013698,2]
[329961758,1718871038269,-500.0,0.00013698,2]
[329961759,1718871038278,-3512.52,0.00013698,2]
[329961760,1718871038292,-1711.81,0.00013698,2]
[329961761,1718871038301,-500.0,0.00013698,2]
[329961762,1718871038311,-1330.71,0.00013698,2]
[329961763,1718871038322,-2330.31,0.00013698,2]
[329961764,1718871038335,-1582.65,0.00013698,2]
[329961765,1718871038345,-500.0,0.00013698,2]
[329961766,1718871038356,-500.0,0.00013698,2]
[329961767,1718871038365,-2828.98,0.00013698,2]
[329961768,1718871038374,-500.0,0.00013698,2]
[329961769,1718871038384,-1086.66,0.00013698,2]
[329961770,1718871038392,-2083.09,0.00013698,2]
[329961771,1718871038402,-500.0,0.00013698,2]
[329961772,1718871038411,-983.93,0.00013698,2]
[329961773,1718871038420,-500.0,0.00013698,2]
[329961774,1718871038430,-10833.98,0.00013698,2]
[329961775,1718871038439,-1037.52,0.00013698,2]
[329961776,1718871038449,-1600.07,0.00013698,2]
[329961777,1718871038458,-2477.97,0.00013698,2]
[329961778,1718871038469,-500.0,0.00013698,2]
[329961779,1718871038478,-500.0,0.00013698,2]
[329961780,1718871038488,-3957.88,0.00013698,2]
[329961781,1718871038497,-500.0,0.00013698,2]
[329961782,1718871038507,-500.0,0.00013698,2]
[329961783,1718871038516,-3493.39,0.00013698,2]
[329961784,1718871038526,-2048.64,0.00013698,2]
[329961785,1718871038535,-699.13,0.00013698,2]
[329961787,1718871038544,-3363.42,0.00013698,2]
[329961788,1718871038553,-910.82,0.00013698,2]
[329961789,1718871038563,-839.57,0.00013698,2]
[329961790,1718871038572,-2467.13,0.00013698,2]
[329961791,1718871038582,-8650.08,0.00013698,2]
[329961792,1718871038591,-871.07,0.00013698,2]
[329961793,1718871038602,-812.24,0.00013698,2]
[329961794,1718871038611,-3620.41,0.00013698,2]
[329961795,1718871038620,-3541.95,0.00013698,2]
[329961796,1718871038630,-2942.93,0.00013698,2]
[329961797,1718871038639,-684.7,0.00013698,2]
[329961798,1718871038648,-500.0,0.00013698,2]
[329961799,1718871038658,-4920.81,0.00013698,2]
[329961800,1718871038667,-718.3,0.00013698,2]
[329961801,1718871038678,-1680.89,0.00013698,2]
[329961802,1718871038687,-4358.46,0.00013698,2]
[329961803,1718871038696,-997.76,0.00013698,2]
[329961804,1718871038706,-500.0,0.00013698,2]
[329961805,1718871038716,-3707.75,0.00013698,2]
[329961806,1718871038725,-585.94,0.00013698,2]
[329961807,1718871038735,-775.78,0.00013698,2]
[329961808,1718871038745,-616.49,0.00013698,2]
[329961809,1718871038755,-500.0,0.00013698,2]
[329961810,1718871038765,-500.0,0.00013698,2]
[329961811,1718871038775,-798.36,0.00013698,2]
[329961812,1718871038784,-5318.29,0.00013698,2]
[329961813,1718871038794,-2129.55,0.00013698,2]
[329961814,1718871038804,-500.0,0.00013698,2]
[329961815,1718871038814,-3726.3,0.00013698,2]
[329961816,1718871038824,-500.0,0.00013698,2]
[329961817,1718871038834,-483.94718711,0.00013698,2]
[329961818,1718871038843,-2208.61,0.00013698,2]
[329961819,1718871038855,-886.3,0.00013698,2]
[329961820,1718871038867,-500.0,0.00013698,2]
[329961821,1718871038877,-500.0,0.00013698,2]
[329961822,1718871038887,-500.0,0.00013698,2]
[329961823,1718871038896,-2245.04,0.00013698,2]
[329961824,1718871038906,-500.0,0.00013698,2]
[329961825,1718871038916,-500.0,0.00013698,2]
[329961826,1718871038925,-2499.37,0.00013698,2]
[329961827,1718871038935,-551.45,0.00013699,2]
[329961828,1718871038947,-250.0,0.00013699,2]
[329961830,1718871038957,-331.63,0.00013699,2]
[329961832,1718871038966,-151.73232053,0.00013699,2]
[329961834,1718871038976,-231.76947692,0.00013735,2]
[329961836,1718871038985,-7500.0,0.00013758,2]
[329961838,1718871038995,-2052.60318281,0.00013784,2]
[329961839,1718871039004,-7749.99321761,0.0001379,2]
[329961840,1718871039014,-7749.99321759,0.0001379,2]
[329961841,1718871039023,-4422.53051891,0.00013799,2]
[329961842,1718871039034,-4422.53051888,0.00013799,2]
[329961843,1718871039044,-151.73232053,0.00013799,2]
[329961844,1718871039054,-442.0,0.0001383,2]
[329961845,1718871039064,-823.0,0.00013831,2]
[329961846,1718871039074,-500.0,0.00013858,2]
[329961847,1718871039084,-200.0,0.00013866,2]
[329961848,1718871039095,-200.0,0.00013869,2]
[329961849,1718871039106,-1000.0,0.00013869,2]
[329961850,1718871039116,-500.0,0.00013869,2]
[329961851,1718871039126,-200.0,0.00013869,2]
[329961852,1718871039136,-8905.14992269,0.00013872,2]
[329961853,1718871039147,-172.95522263,0.00013872,2]
[329961854,1718871039157,-153.92342101,0.00013872,2]
[329961855,1718871039167,-231.76947692,0.00013872,2]
[329961856,1718871039178,-500.0,0.00013887,2]
[329961857,1718871039188,-4422.53051888,0.00013887,2]
[329961858,1718871039198,-7749.99321759,0.00013887,2]
[329961859,1718871039208,-219.97,0.0001389,3]
[329961860,1718871039218,-3760.72128107,0.000139,2]
[329961861,1718871039228,-172.25146249,0.000139,2]
[329961862,1718871039238,-151.73232053,0.000139,2]
[329961863,1718871039249,-3137.78610756,0.000139,2]
[329961864,1718871039259,-1000.0,0.000139,2]
[329961865,1718871039269,-507.70235372,0.000139,2]
[329961866,1718871039279,-435.3106,0.0001393,2]
[329961867,1718871039289,-164.53,0.00013945,2]
[329961868,1718871039299,-164.53,0.00013945,2]
[329961869,1718871039309,-8905.14992263,0.00013965,2]
[329961870,1718871039319,-311.61212195,0.0001397,2]
[329961871,1718871039329,-2052.60318281,0.0001397,2]
[329961872,1718871039339,-613.0,0.00013972,2]
[329961873,1718871039348,-500.0,0.00013972,2]
[329961874,1718871039360,-500.0,0.00013972,2]
[329961875,1718871039369,-500.0,0.00013972,2]
[329961876,1718871039379,-500.0,0.00013972,2]
[329961877,1718871039389,-500.0,0.00013972,2]
[329961878,1718871039399,-500.0,0.00013972,2]
[329961879,1718871039409,-500.0,0.00013972,2]
[329961880,1718871039419,-500.0,0.00013972,2]
[329961881,1718871039429,-500.0,0.00013972,2]
[329961882,1718871039438,-500.0,0.00013972,2]
[329961883,1718871039448,-500.0,0.00013972,2]
[329961884,1718871039458,-500.0,0.00013972,2]
[329961885,1718871039468,-500.0,0.00013972,2]
[329961886,1718871039477,-241.92676114,0.00013972,2]
[329961887,1718871039487,-500.0,0.00013972,2]
[329961888,1718871039497,-500.0,0.00013972,2]
[329961889,1718871039507,-500.0,0.00013972,2]
[329961890,1718871039517,-500.0,0.00013972,2]
[329961891,1718871039526,-500.0,0.00013972,2]
[329961892,1718871039536,-705.23,0.00013972,2]
[329961893,1718871039547,-126.16869255,0.00013972,2]
[329961894,1718871039607,-373.83130745,0.00013972,2]
[329961895,1718871039617,-500.0,0.00013972,2]
[329961896,1718871039628,-1859.67,0.00013972,2]
[329961897,1718871039638,-500.0,0.00013972,2]
[329961898,1718871039649,-1469.16463314,0.00013972,2]
[329961899,1718871039662,-75.11536686,0.00013972,2]
[329961900,1718871039671,-535.71,0.00013972,2]
[329961901,1718871039682,-500.0,0.00013972,2]
[329961902,1718871039692,-843.11,0.00013972,2]
[329961903,1718871039702,-500.0,0.00013972,2]
[329961904,1718871039712,-422.43317811,0.00013972,2]
[329961905,1718871039725,-800.68682189,0.00013972,2]
[329961906,1718871039735,-500.0,0.00013972,2]
[329961907,1718871039746,-500.0,0.00013972,2]
[329961908,1718871039756,-500.0,0.00013972,2]
[329961909,1718871039766,-500.0,0.00013972,2]
[329961910,1718871039776,-500.0,0.00013972,2]
[329961911,1718871039786,-500.0,0.00013972,2]
[329961912,1718871039796,-470.8564368,0.00013972,2]
[329961913,1718871039809,-29.1435632,0.00013972,2]
[329961914,1718871039819,-500.0,0.00013972,2]